bitfinex-derivatives/quotes_BTCF0:USTF0_20260221
["timestamp","ask_amount","ask_price","bid_price","bid_amount"]
[1771690098660,0.029232,68439.0,68429.0,0.01476]
[1771690098862,0.014615,68443.0,68418.0,0.01462]
[1771690098863,0.014616,68438.0,68418.0,0.01462]
[1771690099061,0.014615,68440.0,68419.0,0.02938]
[1771690099262,0.014615,68439.0,68420.0,0.01476]
[1771690100368,0.014615,68439.0,68419.0,0.01462]
[1771690100561,0.014615,68439.0,68420.0,0.01476]
[1771690100562,0.014616,68437.0,68420.0,0.01476]
[1771690100762,0.014616,68437.0,68421.0,0.01476]
[1771690101460,0.11779951,68439.0,68421.0,0.01476]
[1771690101755,0.014616,68438.0,68421.0,0.01476]
[1771690101954,0.014616,68438.0,68417.0,0.57772042]
[1771690102166,0.014616,68437.0,68418.0,0.01476]
[1771690102667,0.014616,68435.0,68418.0,0.01476]
[1771690102967,0.029232,68435.0,68418.0,0.01476]
[1771690103167,0.014616,68435.0,68418.0,0.01476]
[1771690103369,0.014617,68434.0,68419.0,0.01476]
[1771690103564,0.014617,68434.0,68410.0,0.014621]
[1771690103565,0.014618,68429.0,68420.0,0.01476]
[1771690103769,0.014618,68429.0,68418.0,0.01476]
[1771690104361,0.014618,68429.0,68408.0,0.75206608]
[1771690104362,0.08428274,68425.0,68408.0,0.17434366]
[1771690104568,0.014619,68423.0,68407.0,0.01476]
[1771690104768,0.014619,68421.0,68408.0,0.01476]
[1771690104961,0.014619,68422.0,68408.0,0.01476]
[1771690105162,0.014619,68421.0,68408.0,0.01476]
[1771690105362,0.014619,68422.0,68408.0,0.01476]
[1771690107060,0.014619,68422.0,68416.0,0.00088]
[1771690107264,0.01462,68420.0,68400.0,0.17434366]
[1771690107460,0.01462,68416.0,68401.0,0.01476]
[1771690107867,0.01462,68418.0,68401.0,0.01476]
[1771690108272,0.01462,68417.0,68401.0,0.01476]
[1771690108876,0.07070697,68419.0,68401.0,0.01476]
[1771690109070,0.08532697,68419.0,68401.0,0.01476]
[1771690109467,0.07070697,68419.0,68401.0,0.01476]
[1771690109667,0.014619,68422.0,68401.0,0.57772342]
[1771690109867,0.014619,68424.0,68403.0,0.56310042]
[1771690110062,0.014618,68425.0,68405.0,0.57772342]
[1771690110272,0.014618,68425.0,68405.0,0.47772342]
[1771690110475,0.014619,68424.0,68406.0,0.01476]
[1771690110668,0.001,68419.0,68406.0,0.01476]
[1771690111371,0.002,68419.0,68406.0,0.01476]
[1771690113072,0.001,68419.0,68406.0,0.01476]
[1771690114073,0.002,68419.0,68406.0,0.01476]
[1771690115064,0.002,68419.0,68407.0,0.01476]
[1771690115272,0.002,68419.0,68407.0,0.57786042]
[1771690115681,0.16542325,68430.0,68409.0,0.56310042]
[1771690115878,0.38737961,68435.0,68407.0,0.01476]
[1771690115879,0.014616,68435.0,68414.0,0.56310042]
[1771690116071,0.014616,68435.0,68416.0,0.56310042]
[1771690116376,0.014616,68435.0,68416.0,0.46310042]
[1771690116767,0.12459714,68440.0,68416.0,0.46310042]
[1771690116970,0.014615,68442.0,68423.0,0.56310042]
[1771690117180,0.014615,68443.0,68423.0,0.56310042]
[1771690117784,0.482734,68447.0,68424.0,0.54646823]
[1771690117986,0.46812,68447.0,68425.0,0.53184923]
[1771690118189,0.46812,68447.0,68430.0,0.54646623]
[1771690118370,0.46812,68447.0,68430.0,0.54660923]
[1771690118570,0.014613,68453.0,68430.0,0.54660923]
[1771690118571,0.014613,68452.0,68431.0,0.54646623]
[1771690119082,0.014613,68452.0,68431.0,0.53184923]
[1771690119677,0.014613,68451.0,68431.0,0.53184923]
[1771690119988,0.014613,68452.0,68431.0,0.53184923]
[1771690120490,0.014613,68452.0,68431.0,0.53284923]
[1771690120891,0.014613,68452.0,68431.0,0.53384923]
[1771690121192,0.014613,68450.0,68431.0,0.53384923]
[1771690122490,0.21483468,68450.0,68431.0,0.53284923]
[1771690122788,0.21483468,68450.0,68431.0,0.53384923]
[1771690122989,0.20022168,68450.0,68431.0,0.53384923]
[1771690123179,0.014613,68449.0,68431.0,0.53384923]
[1771690123380,0.014614,68448.0,68431.0,0.53384923]
[1771690123586,0.014614,68447.0,68432.0,0.01476]
[1771690124080,0.014614,68448.0,68432.0,0.00026]
[1771690124377,0.014614,68448.0,68431.0,0.53384923]
[1771690124580,0.014614,68444.0,68422.0,0.53184923]
[1771690124789,0.20022168,68440.0,68423.0,0.01476]
[1771690125387,0.014614,68444.0,68423.0,0.01476]
[1771690127397,0.001,68440.0,68423.0,0.01476]
[1771690127694,0.001,68440.0,68423.0,0.54660923]
[1771690127905,0.014614,68444.0,68423.0,0.54760923]
[1771690128085,0.014614,68444.0,68438.0,0.00088]
[1771690128400,0.014614,68444.0,68424.0,0.01476]
[1771690128598,0.014614,68446.0,68427.0,0.53184923]
[1771690128801,0.014614,68446.0,68427.0,0.54660923]
[1771690128991,0.001,68440.0,68427.0,0.54660923]
[1771690129192,0.001,68440.0,68427.0,0.53184923]
[1771690129499,0.001,68440.0,68428.0,0.01476]
[1771690129900,0.001,68440.0,68427.0,0.53184923]
[1771690130098,0.002,68440.0,68427.0,0.53184923]
[1771690130401,0.001,68440.0,68427.0,0.53184923]
[1771690130992,0.014615,68442.0,68427.0,0.53184923]
[1771690131189,0.001,68440.0,68427.0,0.53184923]
[1771690131691,0.002,68440.0,68427.0,0.53184923]
[1771690132090,0.001,68440.0,68427.0,0.53184923]
[1771690132801,0.001,68440.0,68427.0,0.54660923]
[1771690133592,0.002,68440.0,68427.0,0.54660923]
[1771690135704,0.001,68440.0,68427.0,0.53184923]
[1771690136003,0.002,68440.0,68428.0,0.01476]
[1771690136504,0.001,68440.0,68428.0,0.01476]
[1771690136698,0.002,68440.0,68428.0,0.01476]
[1771690137305,0.002,68440.0,68427.0,0.53184923]
[1771690137503,0.002,68440.0,68428.0,0.01476]
[1771690140101,0.002,68440.0,68427.0,0.53184923]
[1771690140305,0.002,68440.0,68420.0,0.014619]
[1771690140306,0.13460541,68455.0,68441.0,0.53184923]
[1771690140493,0.46816,68467.0,68446.0,0.014614]
[1771690140694,0.46816,68467.0,68447.0,0.43184923]
[1771690140695,0.014611,68462.0,68447.0,0.43184923]
[1771690141603,0.01461,68464.0,68447.0,0.43184923]
[1771690142603,0.01461,68463.0,68447.0,0.43184923]
[1771690142904,0.014611,68462.0,68448.0,0.01476]
[1771690143698,0.01461,68463.0,68448.0,0.01476]
[1771690144093,0.014611,68461.0,68448.0,0.01476]
[1771690144489,0.01461,68465.0,68448.0,0.01476]
[1771690144490,0.014611,68462.0,68448.0,0.01476]
[1771690144708,0.014611,68461.0,68447.0,0.43184923]
[1771690145803,0.01461,68463.0,68447.0,0.43184923]
[1771690146408,0.01461,68464.0,68447.0,0.43184923]
[1771690146608,0.01461,68464.0,68439.0,0.014615]
[1771690146609,0.60475624,68467.0,68435.0,5e-07]
[1771690146610,0.014615,68440.0,68435.0,5e-07]
[1771690146904,0.014615,68440.0,68429.0,0.53184923]
[1771690146905,0.014614,68448.0,68429.0,0.53184923]
[1771690147102,0.06839487,68460.0,68429.0,0.53184923]
[1771690147103,0.014614,68444.0,68429.0,0.53184923]
[1771690147303,0.014615,68442.0,68429.0,0.53184923]
[1771690148000,0.014614,68448.0,68429.0,0.53184923]
[1771690148407,0.014616,68438.0,68429.0,0.53184923]
[1771690148704,0.014614,68448.0,68429.0,0.53184923]
[1771690148705,0.02923,68440.0,68429.0,0.53184923]
[1771690148900,0.014616,68439.0,68429.0,0.53184923]
[1771690149202,0.014616,68438.0,68429.0,0.53184923]
[1771690149792,0.014615,68439.0,68429.0,0.53184923]
[1771690149996,0.015615,68439.0,68429.0,0.53184923]
[1771690150493,0.001,68438.0,68429.0,0.53184923]
[1771690151608,0.002,68438.0,68429.0,0.53184923]
[1771690151810,0.001,68438.0,68429.0,0.53184923]
[1771690152707,0.014614,68444.0,68429.0,0.53184923]
[1771690152912,0.014612,68457.0,68438.0,0.51012333]
[1771690153097,0.014613,68452.0,68438.0,0.51012333]
[1771690154214,0.014613,68450.0,68438.0,0.51012333]
[1771690154512,0.014613,68451.0,68438.0,0.51012333]
[1771690155011,0.014613,68450.0,68438.0,0.51012333]
[1771690155211,0.014613,68451.0,68438.0,0.51012333]
[1771690155612,0.014612,68458.0,68438.0,0.51012333]
[1771690156210,0.014613,68453.0,68438.0,0.51012333]
[1771690157014,0.014613,68452.0,68438.0,0.51012333]
[1771690157416,0.014613,68450.0,68438.0,0.51012333]
[1771690159419,0.014613,68451.0,68438.0,0.51012333]
[1771690159615,0.014613,68450.0,68438.0,0.51012333]
[1771690160614,0.85687172,68467.0,68438.0,0.51012333]
[1771690160820,0.014614,68446.0,68438.0,0.51012333]
[1771690161018,0.014614,68447.0,68438.0,0.51012333]
[1771690161407,0.014614,68446.0,68438.0,0.51012333]
[1771690161613,0.014614,68447.0,68438.0,0.51012333]
[1771690161814,0.014613,68450.0,68438.0,0.51012333]
[1771690162615,0.014616,68438.0,68426.0,0.51012333]
[1771690162812,0.014615,68440.0,68426.0,0.51012333]
[1771690163013,0.02923,68440.0,68426.0,0.51012333]
[1771690163311,0.014616,68439.0,68426.0,0.51012333]
[1771690163506,0.014616,68438.0,68426.0,0.51012333]
[1771690163919,0.014616,68439.0,68426.0,0.51012333]
[1771690163920,0.014616,68437.0,68426.0,0.51012333]
[1771690166322,0.015616,68437.0,68426.0,0.51012333]
[1771690166629,0.014615,68441.0,68426.0,0.51012333]
[1771690166925,0.014614,68447.0,68426.0,0.51012333]
[1771690167218,0.014616,68439.0,68426.0,0.51012333]
[1771690167424,0.014616,68438.0,68426.0,0.51012333]
[1771690167625,0.014616,68436.0,68426.0,0.51012333]
[1771690167813,0.014616,68435.0,68426.0,0.51012333]
[1771690168324,0.014615,68440.0,68406.0,0.46804]
[1771690168325,0.014617,68431.0,68413.0,0.46887097]
[1771690168924,0.014617,68431.0,68415.0,0.45337119]
[1771690169227,0.014617,68432.0,68415.0,0.45337119]
[1771690171522,0.014617,68432.0,68415.0,0.46799119]
[1771690171722,0.014617,68433.0,68415.0,0.46799119]
[1771690171922,0.014615,68442.0,68415.0,0.46799119]
[1771690172119,0.014617,68432.0,68415.0,0.46799119]
[1771690172319,0.014616,68435.0,68415.0,0.46799119]
[1771690172621,0.014617,68433.0,68415.0,0.46799119]
[1771690172825,0.014616,68436.0,68421.0,0.46791258]
[1771690173218,0.014616,68436.0,68421.0,0.36791258]
[1771690173520,0.014616,68435.0,68421.0,0.36791258]
[1771690175323,0.014615,68442.0,68421.0,0.36791258]
[1771690175626,0.014616,68437.0,68421.0,0.36791258]
[1771690176427,0.014616,68438.0,68421.0,0.36791258]
[1771690177624,0.014616,68437.0,68421.0,0.36791258]
[1771690177923,0.014616,68436.0,68421.0,0.36791258]
[1771690178825,0.014616,68437.0,68421.0,0.36791258]
[1771690180127,0.014616,68438.0,68421.0,0.36791258]
[1771690180327,0.2126284,68437.0,68421.0,0.36791258]
[1771690180528,0.014616,68437.0,68421.0,0.36791258]
[1771690181224,0.13318056,68454.0,68421.0,0.36791258]
[1771690181529,0.014615,68440.0,68425.0,0.3548054]
[1771690181830,0.19800554,68439.0,68425.0,0.2409054]
[1771690182226,0.014615,68440.0,68425.0,0.2409054]
[1771690182528,0.05700895,68440.0,68425.0,0.2409054]
[1771690186727,0.014615,68443.0,68425.0,0.2555234]
[1771690187124,0.014615,68442.0,68425.0,0.2555234]
[1771690187534,0.014614,68446.0,68425.0,0.2409054]
[1771690187535,0.05700895,68440.0,68425.0,0.2409054]
[1771690187832,0.07162395,68440.0,68425.0,0.2409054]
[1771690188330,0.07162395,68440.0,68425.0,0.2419054]
[1771690188725,0.07162395,68440.0,68425.0,0.2409054]
[1771690189333,0.07162395,68440.0,68425.0,0.2419054]
[1771690189736,0.014615,68439.0,68425.0,0.001]
[1771690189926,0.014615,68439.0,68422.0,0.014619]
[1771690190628,0.014615,68439.0,68422.0,0.029238]
[1771690192525,0.014616,68438.0,68422.0,0.029238]
[1771690193735,0.014616,68437.0,68422.0,0.014619]
[1771690194637,0.014616,68437.0,68422.0,0.029238]
[1771690194936,0.014613,68449.0,68430.0,0.014617]
[1771690195233,0.17786134,68440.0,68428.0,0.014618]
[1771690195435,0.0419634,68440.0,68427.0,0.20502777]
[1771690195830,0.17786134,68450.0,68428.0,0.20305153]
[1771690196027,0.014611,68458.0,68440.0,0.17786134]
[1771690196232,0.014612,68456.0,68441.0,0.014615]
[1771690196433,0.55464452,68467.0,68441.0,0.014615]
[1771690196643,0.19247234,68460.0,68444.0,0.014614]
[1771690196831,0.014611,68460.0,68445.0,0.014614]
[1771690197037,0.014611,68460.0,68443.0,0.014615]
[1771690197340,0.014611,68460.0,68444.0,0.014614]
[1771690197341,0.014611,68459.0,68444.0,0.014614]
[1771690197832,0.014611,68460.0,68444.0,0.014614]
[1771690197833,0.01461,68464.0,68444.0,0.19811956]
[1771690198039,0.01461,68464.0,68449.0,0.21273256]
[1771690198429,0.46804,68471.0,68443.0,0.001]
[1771690198430,0.014608,68473.0,68459.0,0.15428956]
[1771690198629,0.55464452,68480.0,68454.0,0.15325908]
[1771690198834,0.014607,68479.0,68464.0,0.01461]
[1771690199138,0.014607,68479.0,68463.0,0.15325908]
[1771690199525,0.014607,68478.0,68463.0,0.16786908]
[1771690199930,0.014607,68478.0,68463.0,0.15325908]
[1771690200133,0.17786134,68480.0,68454.0,0.001]
[1771690200134,0.55464452,68477.0,68455.0,0.13423534]
[1771690200332,0.55464452,68477.0,68437.0,0.2422857]
[1771690200333,0.014611,68461.0,68443.0,0.014615]
[1771690200537,0.19247234,68460.0,68444.0,0.014614]
[1771690200738,0.19247234,68460.0,68445.0,0.014614]
[1771690200931,0.014611,68459.0,68445.0,0.014614]
[1771690201243,0.014611,68458.0,68445.0,0.014614]
[1771690201440,0.17786134,68460.0,68447.0,0.014614]
[1771690201632,0.19247234,68460.0,68447.0,0.014614]
[1771690201828,0.014611,68460.0,68447.0,0.014614]
[1771690202132,0.014611,68460.0,68455.0,0.001]
[1771690202340,0.014613,68453.0,68440.0,0.14852401]
[1771690202540,0.014613,68453.0,68443.0,0.001]
[1771690202742,0.014612,68455.0,68443.0,0.001]
[1771690202942,0.014612,68454.0,68443.0,0.014614]
[1771690203132,0.014612,68455.0,68440.0,0.014615]
[1771690203133,0.014611,68461.0,68444.0,0.11733017]
[1771690203337,0.014611,68459.0,68447.0,0.014614]
[1771690203533,0.55464452,68472.0,68444.0,0.13194417]
[1771690203836,0.01461,68463.0,68444.0,0.13194417]
[1771690204150,0.014611,68461.0,68450.0,0.014613]
[1771690204338,0.55464452,68466.0,68444.0,0.11833017]
[1771690204531,0.014612,68456.0,68444.0,0.11833017]
[1771690205440,0.014612,68457.0,68445.0,0.014614]
[1771690206743,0.014612,68457.0,68444.0,0.13194417]
[1771690206944,0.014612,68456.0,68444.0,0.13194417]
[1771690207846,0.014612,68455.0,68444.0,0.13194417]
[1771690208043,0.014612,68457.0,68444.0,0.13194417]
[1771690208236,0.014612,68457.0,68445.0,0.014614]
[1771690209540,0.014612,68456.0,68444.0,0.11733017]
[1771690209942,0.014612,68457.0,68445.0,0.014614]
[1771690211048,0.014612,68456.0,68444.0,0.014614]
[1771690211346,0.014612,68456.0,68445.0,0.014614]
[1771690211651,0.014611,68458.0,68446.0,0.014614]
[1771690212450,0.014611,68458.0,68447.0,0.014614]
[1771690212640,0.01461,68465.0,68440.0,0.1212685]
[1771690212844,0.014611,68462.0,68450.0,0.014613]
[1771690213545,0.014611,68460.0,68448.0,0.014613]
[1771690213951,0.014611,68461.0,68448.0,0.014613]
[1771690214139,0.014611,68461.0,68448.0,0.029226]
[1771690214349,0.014612,68454.0,68433.0,0.26265187]
[1771690214652,0.54186965,68455.0,68443.0,0.014615]
[1771690214955,0.014611,68459.0,68436.0,0.13568353]
[1771690215158,0.014612,68455.0,68441.0,0.014615]
[1771690215359,0.014612,68454.0,68438.0,0.014616]
[1771690215660,0.014612,68454.0,68443.0,0.001]
[1771690215848,0.014612,68453.0,68443.0,0.001]
[1771690216051,0.014613,68451.0,68443.0,0.0008]
[1771690216356,0.014613,68449.0,68441.0,0.001]
[1771690217857,0.014614,68448.0,68437.0,0.014616]
[1771690218461,0.016613,68449.0,68437.0,0.014616]
[1771690218764,0.014614,68448.0,68438.0,0.014615]
[1771690219467,0.014613,68451.0,68430.0,0.3840039]
[1771690219670,0.01286209,68451.0,68433.0,0.12135203]
[1771690219974,0.01159876,68451.0,68441.0,0.014615]
[1771690220774,0.014613,68450.0,68441.0,0.014615]
[1771690221071,0.014613,68450.0,68444.0,0.00084]
[1771690221281,0.014613,68450.0,68441.0,0.014615]
[1771690221669,0.014613,68450.0,68440.0,0.014615]
[1771690226066,0.014613,68450.0,68440.0,0.19237022]
[1771690226266,0.014613,68450.0,68440.0,0.014615]
[1771690231977,0.014613,68449.0,68440.0,0.014615]
[1771690232170,0.014614,68448.0,68439.0,0.014615]
[1771690232776,0.014613,68449.0,68440.0,0.014615]
[1771690233083,0.014614,68448.0,68439.0,0.014615]
[1771690233376,0.014614,68448.0,68440.0,0.014615]
[1771690233678,0.014614,68448.0,68439.0,0.014615]
[1771690233881,0.014613,68451.0,68442.0,0.014615]
[1771690234080,0.029226,68451.0,68442.0,0.014615]
[1771690234471,0.014613,68451.0,68442.0,0.014615]
[1771690234672,0.014613,68450.0,68442.0,0.014615]
[1771690235082,0.014613,68450.0,68441.0,0.014615]
[1771690235582,0.014613,68451.0,68442.0,0.014615]
[1771690235770,0.014613,68452.0,68443.0,0.014614]
[1771690235971,0.014613,68449.0,68439.0,0.014615]
[1771690236680,0.014613,68449.0,68440.0,0.014615]
[1771690236982,0.014614,68448.0,68440.0,0.014615]
[1771690238181,0.014613,68450.0,68441.0,0.014615]
[1771690238781,0.014614,68448.0,68440.0,0.014615]
[1771690239276,0.014613,68449.0,68440.0,0.014615]
[1771690240383,0.014614,68448.0,68440.0,0.014615]
[1771690240983,0.014614,68448.0,68440.0,0.27726687]
[1771690242175,0.014613,68449.0,68440.0,0.27726687]
[1771690242582,0.014613,68450.0,68441.0,0.014615]
[1771690243281,0.014613,68450.0,68441.0,0.27726687]
[1771690244289,0.014613,68450.0,68442.0,0.26265187]
[1771690244589,0.014613,68450.0,68445.0,0.26265187]
[1771690244789,0.014612,68454.0,68445.0,0.26265187]
[1771690245082,0.014612,68454.0,68448.0,0.00088]
[1771690245281,0.014612,68454.0,68446.0,0.26265187]
[1771690245477,0.014612,68455.0,68446.0,0.26265187]
[1771690245677,0.54186965,68457.0,68446.0,0.26265187]
[1771690245884,0.001,68450.0,68446.0,0.26265187]
[1771690246086,0.014612,68455.0,68446.0,0.26265187]
[1771690246280,0.014612,68453.0,68446.0,0.26265187]
[1771690246480,0.49481585,68454.0,68446.0,0.26265187]
[1771690247278,0.48020385,68454.0,68446.0,0.26265187]
[1771690247590,0.002,68455.0,68447.0,0.26265187]
[1771690248195,0.001,68455.0,68446.0,0.26265187]
[1771690248687,0.014612,68456.0,68446.0,0.26265187]
[1771690249889,0.01461,68463.0,68446.0,0.26265187]
[1771690250193,0.014611,68460.0,68452.0,0.26265187]
[1771690250405,0.01461,68466.0,68452.0,0.26265187]
[1771690250578,0.01461,68465.0,68452.0,0.26265187]
[1771690250779,0.01461,68464.0,68452.0,0.26265187]
[1771690251196,0.01461,68463.0,68451.0,0.26265187]
[1771690251385,0.01461,68463.0,68456.0,0.17526141]
[1771690251786,0.01461,68464.0,68456.0,0.17526141]
[1771690251992,0.01461,68463.0,68456.0,0.17526141]
[1771690252295,0.01461,68464.0,68451.0,0.26265187]
[1771690252788,0.48020385,68467.0,68452.0,0.014613]
[1771690252986,0.01461,68466.0,68453.0,0.014612]
[1771690253186,0.01461,68466.0,68452.0,0.26265187]
[1771690253390,0.49481285,68467.0,68452.0,0.26265187]
[1771690253585,0.01461,68464.0,68452.0,0.26265187]
[1771690254392,0.01461,68464.0,68451.0,0.27726487]
[1771690254584,0.02922,68464.0,68451.0,0.27726487]
[1771690254891,0.01461,68464.0,68451.0,0.27726487]
[1771690255187,0.01461,68464.0,68452.0,0.26265187]
[1771690255387,0.01461,68463.0,68451.0,0.27726487]
[1771690256497,0.014611,68462.0,68451.0,0.26265187]
[1771690257598,0.014611,68461.0,68451.0,0.26265187]
[1771690257897,0.014611,68462.0,68451.0,0.26265187]
[1771690258098,0.014611,68462.0,68451.0,0.27726487]
[1771690258595,0.01461,68463.0,68451.0,0.27726487]
[1771690260095,0.014611,68462.0,68451.0,0.27726487]
[1771690260296,0.014611,68462.0,68451.0,0.014613]
[1771690260498,0.014611,68462.0,68452.0,0.26265187]
[1771690260902,0.014611,68461.0,68452.0,0.24815187]
[1771690261094,0.014611,68460.0,68452.0,0.24815187]
[1771690261700,0.014611,68459.0,68452.0,0.24815187]
[1771690261897,0.014612,68458.0,68447.0,0.32800834]
[1771690262406,0.014612,68457.0,68447.0,0.32800834]
[1771690262902,0.014613,68453.0,68444.0,0.32800834]
[1771690263495,0.014613,68452.0,68444.0,0.32800834]
[1771690265403,0.014613,68451.0,68444.0,0.32800834]
[1771690265593,0.014613,68453.0,68443.0,0.32800834]
[1771690265594,0.014614,68444.0,68443.0,0.32800834]
[1771690265798,0.014614,68444.0,68436.0,0.32800834]
[1771690265998,0.014614,68444.0,68435.0,0.32800834]
[1771690266805,0.014615,68443.0,68435.0,0.32800834]
[1771690267198,0.014615,68443.0,68434.0,0.32800834]
[1771690267505,0.014614,68446.0,68436.0,0.014616]
[1771690267804,0.014614,68445.0,68436.0,0.014616]
[1771690269697,0.014614,68444.0,68436.0,0.014616]
[1771690270300,0.029229,68444.0,68436.0,0.014616]
[1771690270502,0.014614,68444.0,68436.0,0.014616]
[1771690271108,0.029229,68444.0,68436.0,0.014616]
[1771690271508,0.014614,68444.0,68436.0,0.014616]
[1771690271810,0.014614,68446.0,68439.0,0.014615]
[1771690272107,0.014614,68445.0,68437.0,0.014616]
[1771690272506,0.001,68444.0,68438.0,0.014616]
[1771690272898,0.001,68444.0,68437.0,0.014616]
[1771690273209,0.014614,68445.0,68437.0,0.014616]
[1771690273408,0.014614,68447.0,68439.0,0.014615]
[1771690273911,0.014614,68447.0,68440.0,0.014615]
[1771690274302,0.014614,68448.0,68440.0,0.014615]
[1771690275510,0.014613,68449.0,68440.0,0.014615]
[1771690275715,0.014613,68449.0,68438.0,0.014616]
[1771690275909,0.014613,68449.0,68440.0,0.014615]
[1771690276105,0.014613,68450.0,68441.0,0.014615]
[1771690276307,0.029226,68450.0,68441.0,0.014615]
[1771690276508,0.014613,68449.0,68440.0,0.014615]
[1771690277819,0.014614,68448.0,68440.0,0.014615]
[1771690279316,0.014613,68449.0,68440.0,0.02923]
[1771690279614,0.014613,68449.0,68440.0,0.014615]
[1771690280914,0.014614,68448.0,68435.0,0.34262434]
[1771690281115,0.014614,68448.0,68436.0,0.014616]
[1771690282519,0.014614,68448.0,68440.0,0.014615]
[1771690283218,0.014614,68447.0,68440.0,0.014615]
[1771690283414,0.014614,68448.0,68440.0,0.014615]
[1771690284608,0.014613,68449.0,68440.0,0.02923]
[1771690284808,0.014614,68448.0,68440.0,0.014615]
[1771690285013,0.014614,68448.0,68439.0,0.014615]
[1771690286523,0.014614,68448.0,68440.0,0.014615]
[1771690286723,0.014613,68449.0,68440.0,0.014615]
[1771690286925,0.029226,68449.0,68440.0,0.014615]
[1771690287123,0.014613,68449.0,68440.0,0.014615]
[1771690289427,0.029227,68449.0,68440.0,0.014615]
[1771690289820,0.014613,68449.0,68440.0,0.014615]
[1771690292230,0.014613,68450.0,68440.0,0.014615]
[1771690292429,0.014613,68450.0,68441.0,0.26276066]
[1771690293835,0.014613,68451.0,68441.0,0.26276066]
[1771690294335,0.014613,68451.0,68442.0,0.26276066]
[1771690294738,0.014613,68452.0,68442.0,0.26276066]
[1771690295335,0.014613,68452.0,68443.0,0.26276066]
[1771690297738,0.014613,68451.0,68443.0,0.26276066]
[1771690301141,0.014613,68452.0,68443.0,0.26276066]
[1771690301739,0.46228462,68456.0,68443.0,0.26276066]
[1771690302042,0.014613,68452.0,68450.0,0.0008]
[1771690302244,0.014613,68452.0,68444.0,0.26276066]
[1771690302441,0.014613,68452.0,68444.0,0.24846066]
[1771690303346,0.014613,68453.0,68444.0,0.24846066]
[1771690303644,0.014613,68452.0,68444.0,0.24846066]
[1771690303842,0.015613,68452.0,68444.0,0.24846066]
[1771690304344,0.001,68452.0,68444.0,0.24846066]
[1771690304644,0.014613,68452.0,68444.0,0.24846066]
[1771690306546,0.014613,68451.0,68444.0,0.24846066]
[1771690306849,0.014613,68451.0,68444.0,0.23464666]
[1771690307348,0.014613,68451.0,68440.0,0.34262334]
[1771690307549,0.015613,68451.0,68440.0,0.34262334]
[1771690308250,0.014613,68451.0,68440.0,0.34262334]
[1771690308448,0.015613,68451.0,68440.0,0.34262334]
[1771690309357,0.001,68451.0,68440.0,0.34262334]
[1771690309650,0.015613,68451.0,68440.0,0.32800834]
[1771690309948,0.014613,68451.0,68440.0,0.32800834]
[1771690311152,0.014613,68451.0,68440.0,0.34262334]
[1771690311351,0.014613,68451.0,68440.0,0.014615]
[1771690313352,0.014613,68451.0,68439.0,0.32800834]
[1771690313353,0.46228462,68446.0,68439.0,0.32800834]
[1771690313546,0.029228,68445.0,68433.0,0.014617]
[1771690313747,0.014615,68443.0,68433.0,0.014617]
[1771690314148,0.014615,68442.0,68433.0,0.014617]
[1771690314351,0.014615,68443.0,68433.0,0.014617]
[1771690314650,0.02923,68443.0,68433.0,0.014617]
[1771690314850,0.014615,68441.0,68433.0,0.014617]
[1771690315746,0.02923,68441.0,68433.0,0.014617]
[1771690315947,0.014615,68440.0,68433.0,0.014617]
[1771690316353,0.014615,68441.0,68433.0,0.014617]
[1771690316559,0.014615,68439.0,68433.0,0.014617]
[1771690317552,0.029231,68439.0,68433.0,0.014617]
[1771690318452,0.014615,68441.0,68434.0,0.014616]
[1771690318653,0.014616,68438.0,68434.0,0.014616]
[1771690318959,0.014616,68439.0,68434.0,0.014616]
[1771690319161,0.014615,68440.0,68434.0,0.014616]
[1771690319558,0.014615,68442.0,68434.0,0.014616]
[1771690320363,0.014616,68438.0,68433.0,0.014617]
[1771690320858,0.46228462,68442.0,68424.0,0.00014349]
[1771690321063,0.014618,68429.0,68424.0,0.01476243]
[1771690321658,0.014618,68428.0,68424.0,0.00014343]
[1771690323358,0.46228462,68431.0,68416.0,0.01462]
[1771690323561,0.014618,68428.0,68416.0,0.01462]
[1771690323761,0.014619,68422.0,68416.0,0.01462]
[1771690323961,0.014619,68423.0,68415.0,0.01462]
[1771690324260,0.014619,68423.0,68414.0,0.014621]
[1771690324261,0.00011253,68422.0,68416.0,0.01462]
[1771690324460,0.02935053,68422.0,68415.0,0.014621]
[1771690324661,0.014619,68421.0,68414.0,0.029242]
[1771690324861,0.01473153,68422.0,68415.0,0.01462]
[1771690325061,0.01473153,68422.0,68416.0,0.01462]
[1771690325259,0.01473153,68422.0,68415.0,0.014621]
[1771690325758,0.01462,68420.0,68410.0,0.17779532]
[1771690325963,0.014619,68421.0,68414.0,0.014621]
[1771690326160,0.01473153,68422.0,68414.0,0.014621]
[1771690328556,0.014621,68416.0,68408.0,0.014622]
[1771690328868,0.01462,68418.0,68409.0,0.014622]
[1771690329063,0.01462,68417.0,68409.0,0.014622]
[1771690329562,0.01473153,68422.0,68413.0,0.014621]
[1771690329764,0.014619,68421.0,68413.0,0.014621]
[1771690329969,0.01462,68420.0,68411.0,0.014621]
[1771690331672,0.014619,68421.0,68412.0,0.014621]
[1771690332567,0.00011253,68422.0,68413.0,0.014621]
[1771690332756,0.01473153,68422.0,68412.0,0.014621]
[1771690332956,0.01473153,68422.0,68413.0,0.014621]
[1771690332957,0.00011253,68422.0,68413.0,0.014621]
[1771690333162,0.01473153,68422.0,68412.0,0.014621]
[1771690335976,0.00011253,68422.0,68413.0,0.014621]
[1771690337676,0.00011253,68422.0,68414.0,0.014621]
[1771690337883,0.014619,68424.0,68414.0,0.014621]
[1771690338783,0.029238,68424.0,68413.0,0.014621]
[1771690338976,0.014619,68424.0,68413.0,0.014621]
[1771690339184,0.014619,68423.0,68413.0,0.014621]
[1771690341687,0.014619,68424.0,68414.0,0.014621]
[1771690341888,0.014617,68434.0,68419.0,0.01462]
[1771690342081,0.029235,68430.0,68419.0,0.01462]
[1771690342382,0.014618,68429.0,68413.0,0.014621]